Cogmind - Beta 17 @@@ ROGUE MODE // 2026.06.23 @ 22:09:03 Player: the Result: Escaped! Performance ------------- Evolutions (9) 4500 Regions Visited (23) 4600 Robots Destroyed (489) 2445 Value Destroyed (25937) 25937 Prototype IDs (121) 2420 Alien Tech Used (6) 1200 Bonus (62744) 62744 TOTAL SCORE: 103846 Bonus ------- Triggered High Security 2000 High Alert Combat Kills 10333 Follower Combat Kills 1256 Prayed to X0-1V1 5000 Major X0-1V1 Interference 15200 Met Zhirov 300 Met Warlord at Base 500 MAIN.C Attacked Warlord 500 Warlord Defense Kills 5364 Found Hidden Lab 3000 Met Warlord at Research 2000 Scanned by Researcher 500 Pursued by Intercept 1500 Destroyed Superfortress 15000 Win 3000 Friendly Fire -2709 Cogmind --------- Core Integrity 1046/1350 Matter 267/800 Energy 2848/2893 System Corruption 27% Temperature Cool (58) Movement Flying (63) Location To Epsilon Eridani Parts ------- > --- POWER (3) -------- ZP-Singularity Core > --- PROPULSION (8) --- Flying Impulse-Cooled Exoskeleton > --- UTILITY (10) ----- Armored Scrap Engine Experimental Coolant Injector Huge Storage Unit Experimental Targeting Computer Quantum Capacitor Heavy Regenerative Plating (fused) Experimental Force Field > --- WEAPON (5) ------- Warp Cannon Hvy. Laser Nova Construct/C > --- INVENTORY (25) --- Experimental Thermal Generator Concept NT7 Matterbank (750) Seismic Detector Experimental Targeting Computer Experimental Targeting Computer Experimental Core Analyzer Experimental Transmission Jammer Experimental Phase Shifter Makeshift Ablative Armor Graphene Brace Experimental Focal Shield Advanced Force Field Concept Antimissile System Concept Matter Streamer Subatomic Replicator Cooled Nova Cannon Hypercooled Linear Accelerator Hypercooled Linear Accelerator Concept Helical Railcannon Ragnarok Missile Launcher Peak State ------------ > --- POWER ------------ ZP-Singularity Core > --- PROPULSION ------- Flying Impulse-Cooled Exoskeleton > --- UTILITY ---------- Armored Scrap Engine Huge Storage Unit Experimental Targeting Computer Tactical Coordination Suite Experimental Armor Integrity Analyzer Deep Network Scanner X0-1V1's Piety Tracker LC Capacitor > --- WEAPON ----------- YOLO Cannon Hvy. Laser Nova Construct/C > --- INVENTORY -------- Large Storage Unit High-capacity Storage Unit Seismic Detector Quantum Capacitor Improved Weapon Cycler Advanced Reaction Control System Advanced Phase Shifter Makeshift Ablative Armor Heavy Regenerative Plating Graphene Brace Experimental Focal Shield Ghost Barrier Long-range Tractor Beam Transdimensional Reconstructor Heavy Tesla Rifle Heavy Wave Gun Vortex Shotgun Long-range Phase Cannon Warp Cannon [Rating: 232] Favorites ----------- Power Constructs Engine Ion Engine Power Core Constructs Propulsion Constructs Treads Light Treads Wheel Armored Wheel Flight Unit Constructs Utility X0-1V1's Piety Tracker Device X0-1V1's Piety Tracker Storage Huge Storage Unit Processor Experimental Targeting Computer Hackware Deep Network Scanner Protection Heavy Regenerative Plating Artifact LC Capacitor Weapon Constructs Energy Gun Constructs Energy Cannon Heavy Ion Cannon Ballistic Gun Assault Rifle Ballistic Cannon Constructs Launcher Tesla Bomb Launcher Special Weapon Mining Laser Slashing Weapon Scythe Special Melee Weapon Datajack Build | -11 -10 -10 -8 -7 -7 -7 -5 -5 -5 -5 -4 -4 -4 -4 -4 -3 -3 -3 -3 -2 -2 -2 -1 ------- Run | Yrd Mat Sub Mat Fac Sto Rec Fac Upp Upp War Pro Fac Upp Upp Zhi Pro Res Arm Lab Res Qua Frg Acc Slots Evolved 17 | . . . 4 2 . . 4 . . . . 2 . . . . 2 . . 2 . . 1 Power 1 | . . . . . . . . . . . . 1 . . . . . . . . . . . Propulsion 4 | . . . 2 . . . 1 . . . . . . . . . . . . 1 . . . Utility 9 | . . . 2 1 . . 2 . . . . . . . . . 2 . . 1 . . 1 Weapon 3 | . . . . 1 . . 1 . . . . 1 . . . . . . . . . . . Parts Attached 219 | 7 6 8 30 16 25 5 12 4 3 20 . 8 . 4 1 . 3 12 3 19 16 13 4 Power 14 | 1 . 1 6 3 2 . 1 . . . . . . . . . . . . . . . . Engine 11 | 1 . 1 5 2 1 . 1 . . . . . . . . . . . . . . . . Core 3 | . . . 1 1 1 . . . . . . . . . . . . . . . . . . Reactor . | . . . . . . . . . . . . . . . . . . . . . . . . Propulsion 18 | 2 . 2 3 6 3 1 . . . . . . . . . . . . . . . 1 . Treads 5 | 2 . 2 . . . . . . . . . . . . . . . . . . . 1 . Leg . | . . . . . . . . . . . . . . . . . . . . . . . . Wheel 13 | . . . 3 6 3 1 . . . . . . . . . . . . . . . . . Hover . | . . . . . . . . . . . . . . . . . . . . . . . . Flight . | . . . . . . . . . . . . . . . . . . . . . . . . Utility 118 | 2 4 . 8 4 8 2 7 3 3 18 . 8 . 3 1 . 3 4 1 15 12 9 3 Device 81 | 1 2 . 3 3 6 2 7 2 2 8 . 5 . 2 . . 3 2 . 12 11 7 3 Storage 12 | 1 2 . 1 1 1 . . 1 1 . . . . 1 1 . . . . . 1 1 . Processor 11 | . . . 2 . . . . . . 5 . 1 . . . . . 2 . . . 1 . Hackware 3 | . . . 1 . . . . . . . . . . . . . . . . 2 . . . Protection 10 | . . . 1 . 1 . . . . 5 . 2 . . . . . . . 1 . . . Artifact 1 | . . . . . . . . . . . . . . . . . . . 1 . . . . Weapon 69 | 2 2 5 13 3 12 2 4 1 . 2 . . . 1 . . . 8 2 4 4 3 1 Energy Gun 20 | 1 . 2 2 1 6 . . . . 2 . . . 1 . . . 3 1 1 . . . Energy Cannon 15 | . . . 5 2 1 1 1 . . . . . . . . . . 2 1 . . 2 . Ballistic Gun 13 | 1 1 1 3 . 4 1 . . . . . . . . . . . . . 2 . . . Ballistic Cannon 6 | . . 1 . . 1 . . . . . . . . . . . . 1 . . 2 1 . Launcher 10 | . 1 . 1 . . . 3 1 . . . . . . . . . 1 . 1 1 . 1 Special Weapon 2 | . . 1 . . . . . . . . . . . . . . . . . . 1 . . Impact Weapon . | . . . . . . . . . . . . . . . . . . . . . . . . Slashing Weapon 1 | . . . 1 . . . . . . . . . . . . . . . . . . . . Piercing Weapon . | . . . . . . . . . . . . . . . . . . . . . . . . Special Melee Weapon 2 | . . . 1 . . . . . . . . . . . . . . 1 . . . . . Unidentified Prototypes 83 | . 1 . 4 3 7 1 3 . . 11 . 6 . . 2 . . 11 4 9 8 13 . Parts Lost 37 | . 1 1 4 1 9 1 6 1 2 1 . . . 1 . . . . . 3 5 . 1 Power 6 | . . . 4 . . . 1 . 1 . . . . . . . . . . . . . . Propulsion 5 | . . . . . 3 1 1 . . . . . . . . . . . . . . . . Utility 22 | . 1 . . 1 5 . 4 1 1 1 . . . . . . . . . 3 4 . 1 Weapon 4 | . . 1 . . 1 . . . . . . . . 1 . . . . . . 1 . . Highest Loss Streak 3 | . 1 1 1 1 2 1 3 1 2 1 . . . 1 . . . . . 1 2 . 1 To Critical Strikes . | . . . . . . . . . . . . . . . . . . . . . . . . Average Backups 17 | 1 9 13 10 14 23 17 8 12 14 18 18 17 16 15 15 15 17 22 21 20 23 23 23 Power . | . 2 2 . . 3 1 . . . . 1 1 1 . . . . . . . . . . Propulsion . | . . . . 1 4 3 1 . . . . . . . . . . . 1 . . . . Utility 9 | . 1 4 4 6 6 3 5 7 9 13 13 13 13 13 13 12 10 10 11 13 13 13 15 Weapon 5 | 1 4 5 4 6 9 7 1 5 5 3 4 3 2 2 2 2 5 9 9 6 7 6 6 Tool/Special . | . . . . . . . . . . . . . . . . . . . . . . . . Unused Backups 91 | . . 13 2 9 8 15 . 4 1 6 . . 1 2 . . 1 3 1 4 10 4 7 Power 7 | . . 2 . . 2 2 . . . . . . . 1 . . . . . . . . . Propulsion 10 | . . . . . . 5 . 1 . 3 . . . . . . . . . 1 . . . Utility 29 | . . 4 1 5 2 2 . . . 1 . . . 1 . . . . . 1 6 2 4 Weapon 41 | . . 6 1 4 4 6 . 3 1 2 . . 1 . . . 1 3 1 2 2 2 2 Tool/Special 4 | . . 1 . . . . . . . . . . . . . . . . . . 2 . 1 Average Slot Usage (%) 60 | . 99 97 56 94 95 65 54 48 48 51 55 45 45 42 45 45 47 49 47 45 47 38 38 Engine 3 | . 14 12 7 8 8 4 8 . . . . . . . . . . . . . . . . Core 1 | . . . 1 2 4 4 . 4 . . . . . . . . . . . . . . 1 Reactor 2 | . . . . . . . . . 3 4 5 5 5 4 5 5 4 4 4 3 4 4 1 Treads 3 | . 28 27 . . . . . . 1 . . . . . . . . . . . 1 . . Leg 1 | . . . . . . . . 2 1 . . . 4 . . . 1 2 4 1 2 4 1 Wheel 4 | . . . 7 25 23 10 . . . . . . . . . . . . . . . . . Hover 1 | . . . . . . 2 5 2 1 1 5 4 . 4 5 5 2 . . . . . . Device 17 | . 13 12 7 15 17 19 24 26 25 22 11 13 15 17 20 20 24 25 19 14 19 11 14 Storage 5 | . 14 12 5 7 6 7 5 5 6 5 5 5 5 5 5 5 4 4 4 3 4 4 3 Processor 4 | . . . 8 7 6 1 . . . 2 5 3 5 5 5 5 4 5 8 7 8 6 3 Protection 1 | . . . . 5 1 1 . . . 1 11 2 . . . . . . . 1 3 4 3 Energy Gun 1 | . 11 4 2 . 7 1 . . . . . . . . . . . . . . . . . Energy Cannon 3 | . . . 9 15 4 2 4 3 5 4 5 5 7 2 . . 1 3 4 1 . 4 1 Ballistic Gun 3 | . 15 20 2 . 6 9 3 . . . . . . . . . . . . . . . . Ballistic Cannon 1 | . . 4 . . . . . 1 . 1 5 5 2 2 5 5 2 . . 3 4 . 1 Peak Build Rating 232 | 7 20 28 77 53 76 81 92 101 130 156 155 166 153 168 168 168 190 200 208 232 232 228 227 Average Rating 122 | 5 9 21 61 49 61 67 70 82 105 138 155 154 151 147 160 168 178 186 191 205 215 208 213 On Entrance 119 | . 7 20 3 38 53 70 63 70 96 127 155 155 151 151 160 168 168 183 188 208 214 217 207 Avg Prop Armor Cover (%) 14 | . . . . . . 14 . . . . . . . . . . . . . . . . . Naked Turns 14 | . . 14 . . . . . . . . . . . . . . . . . . . . . Heaviest Build 230 | 15 31 38 76 64 122 123 124 74 99 123 112 120 99 131 142 142 156 169 174 191 226 223 230 Greatest Support 303 | 40 40 60 30 48 52 53 45 68 70 153 117 147 147 303 202 202 303 259 190 249 298 221 300 Greatest Overweight (x) 4 | . . . 2 2 4 3 2 1 2 1 . 1 . 1 . . . . . 1 1 1 1 Average Overweight (x) . | . . . . 1 2 1 1 . . . . . . . . . . . . . . . . Largest Inventory Capacity 25 | 8 15 15 15 15 25 25 25 20 20 20 20 20 20 25 25 25 25 25 25 25 25 25 25 Average Capacity 20 | 7 12 14 13 15 24 25 22 15 19 19 20 20 20 20 25 25 25 25 25 25 25 25 25 Most Carried 25 | 4 14 15 15 15 25 25 13 15 15 20 20 20 20 19 17 17 25 25 25 25 25 25 25 Average Carried 18 | 2 9 14 10 14 23 17 8 12 14 19 20 19 18 16 16 16 19 24 23 22 24 23 23 Final Capacity 25 | 8 15 5 15 15 25 25 15 20 15 20 20 20 20 25 25 25 25 25 25 25 25 25 25 Final Carried 25 | 4 14 5 15 15 25 7 12 15 14 20 20 19 19 16 17 16 24 23 25 25 24 25 20 Scrap Engine Consumption 183 | . . . . . . 42 14 10 1 25 . 10 7 8 5 . 6 16 1 19 15 3 1 Constructs Created 17 | . . . . . . 3 1 1 4 1 . 1 . 2 . . . . . 2 . . 2 Constructs Modified 125 | . . . . . . 13 3 5 9 20 . 4 5 18 1 . 4 10 . 13 11 . 9 Class Distribution -------------------- 47% | Construct 31% | Mutant 7% | Commander-Construct 4% | Gunner 3% | Commander-Gunner 3% | Hacker-Construct Dominant Class ---------------- Mutant | -10/Materials Mutant | -10/Subcaves Mutant | -8/Materials Mutant | -7/Factory Mutant | -7/Storage Mutant | -7/Recycling Mutant | -5/Factory Mutant | -5/Upper Caves Construct | -5/Upper Caves Commander-Construct | -5/Warlord Construct | -4/Proximity Caves Construct | -4/Factory Construct | -4/Upper Caves Construct | -4/Upper Caves Construct | -4/Zhirov Construct | -3/Proximity Caves Construct | -3/Research Construct | -3/Armory Construct | -3/Lab Hacker-Construct | -2/Research Construct | -2/Quarantine Construct | -2/Protoforge Construct | -1/Access Resources | -11 -10 -10 -8 -7 -7 -7 -5 -5 -5 -5 -4 -4 -4 -4 -4 -3 -3 -3 -3 -2 -2 -2 -1 ----------- Run | Yrd Mat Sub Mat Fac Sto Rec Fac Upp Upp War Pro Fac Upp Upp Zhi Pro Res Arm Lab Res Qua Frg Acc Matter Collected 10440 | 260 191 316 674 414 1009 285 234 366 272 1435 11 122 188 477 74 17 40 163 70 529 1809 999 485 Remotely 748 | . . . . . . . . . 10 414 . . . . . . . . . . . 90 234 Salvage Created 28874 | 62 434 150 1324 761 1357 252 2518 406 137 2922 175 605 552 662 121 151 1409 1396 70 4141 4386 1523 3360 Parts 1215 | 11 43 10 68 44 49 7 88 16 11 134 4 27 24 26 2 9 54 67 2 153 145 65 156 Haulers Intercepted 23 | . 1 . 4 2 2 . 6 . . . . . . . . . 1 . . 4 2 . 1 Recyclers Shooed 10 | . 3 . 2 . . . 3 . . . . 2 . . . . . . . . . . . Parts Field Recycled . | . . . . . . . . . . . . . . . . . . . . . . . . Retrieved Matter . | . . . . . . . . . . . . . . . . . . . . . . . . Parts Self-Destructed 76 | . . 3 . . . . . 7 11 . 4 . 18 23 1 9 . . . . . . . Prevented 11 | . . . . . . . . . . . . . 9 2 . . . . . . . . . Parts Restored . | . . . . . . . . . . . . . . . . . . . . . . . . Kills | -11 -10 -10 -8 -7 -7 -7 -5 -5 -5 -5 -4 -4 -4 -4 -4 -3 -3 -3 -3 -2 -2 -2 -1 ------- Run | Yrd Mat Sub Mat Fac Sto Rec Fac Upp Upp War Pro Fac Upp Upp Zhi Pro Res Arm Lab Res Qua Frg Acc Combat Hostiles Destroyed 382 | . 11 6 21 8 21 3 28 8 2 46 4 9 11 8 . 4 14 29 1 47 49 9 43 Melee 3 | . . . . 1 . . . . . . . . . . . . . 1 . 1 . . . Guns 29 | . 8 3 2 . 14 2 . . . . . . . . . . . . . . . . . Cannons 256 | . . . 12 7 5 1 9 1 2 35 3 3 7 8 . 4 11 24 1 35 38 9 41 AOE 55 | . 3 3 6 . . . 12 7 . 11 . 2 3 . . . . 3 . 1 2 . 2 Classes Destroyed 29 | 1 8 1 4 1 1 . . . . 7 1 . . . . . . 1 . 1 . 1 2 Worker 16 | . 1 . 2 4 . . 2 . . . . . . . . . . . . 5 1 . 1 Builder 19 | . 2 . . 2 1 . 5 . . . . 2 . . . . . . . 3 3 . 1 Tunneler 10 | 4 1 . . 2 . . 1 . . . . . . . . . . . . 1 . . 1 Hauler 23 | . 1 . 4 2 2 . 6 . . . . . . . . . 1 . . 4 2 . 1 Recycler 13 | . 1 . 2 2 . 1 . . . . . 1 . . . . 1 . . 3 . . 2 Carrier 1 | . . . . . . . . . . . . . . . . . . . . . . . 1 Mechanic 1 | . . . . . . . . . . . . . . . . . . . . 1 . . . Operator 5 | . 2 . . 1 . . . . . . . 1 . . . . . . . 1 . . . Drone 3 | . . . . . . . . . . . 2 . . . . . . . . . . 1 . Watcher 13 | . 2 . 1 . 2 . . . . . . . . . . . 1 . . 1 2 1 3 Swarmer 76 | . 9 3 4 3 . . . 5 . 4 . 5 7 . . 4 3 8 . 15 . . 6 Cutter 14 | . . . . . . . . . . . . . . . . . . . . . . . 14 Saboteur 6 | . . . . . . . . . . 3 . . . . . . . 3 . . . . . Grunt 103 | . 2 . 6 1 10 . 20 2 . 17 2 . . 3 . . 6 2 . 6 21 . 5 Brawler 12 | . . . 1 . . . . . . 2 . . 1 4 . . . . . 1 2 . 1 Duelist 10 | . . . . . 1 . . . . 2 . . . . . . . 4 . 2 . . 1 Protector 7 | . . . . . . . . . . 5 . . . . . . . 1 . . . . 1 Researcher 3 | . . . . . . . . . . . . . . . . . . . . . . 3 . Sentry 36 | . . . 7 . 6 2 2 . . . . 2 1 . . . 3 2 . 3 7 . 1 Demolisher 2 | . . . . . . . . . . 1 . . . . . . . . . . . . 1 Specialist 1 | . . . . . . . . . . 1 . . . . . . . . . . . . . Hunter 37 | . . . 3 2 2 . 5 1 2 2 . 2 . . . . 2 4 . 7 1 . 4 Programmer 30 | . . . . 2 2 . 1 . . 3 . . 1 1 . . . 3 . 1 6 5 5 Heavy 2 | . . . . . . . . . . . . . . . . . . 2 . . . . . Behemoth 6 | . . . 1 . . . . . . 2 . . 1 . . . . . . 2 . . . Quarantine Guard 10 | . . . . . . . . . . . . . . . . . . . . . 10 . . Tracker 8 | . . . . . . . . . . . . . . . . . . . . 4 . 2 2 Combat Programmer 2 | . . . . . . . . . . . . . . . . . . . . 1 . . 1 Striker 7 | . . . . . . . . . . 2 . . . . . . . . . 4 . . 1 Executioner 5 | . . . . . . . . . . 2 . . . . . . . . . 1 2 . . Subdweller 4 | . . 3 . . . 1 . . . . . . . . . . . . . . . . . Decomposer 1 | . . . . . . . . 1 . . . . . . . . . . . . . . . Tinkerer 2 | . . . . . . . . . . 1 . . . . . . . . . . . 1 . Thug 2 | . . . . . . . . . . 2 . . . . . . . . . . . . . Best Kill Streak 38 | 3 5 3 9 4 8 1 38 5 2 15 2 5 5 4 . 4 6 9 1 16 13 4 20 Combat Bots Only 25 | . 3 3 5 3 4 1 25 5 2 15 2 5 5 4 . 4 6 9 1 10 9 4 18 Max Kills in Single Turn 5 | 1 2 2 3 1 1 1 4 5 1 4 1 3 3 1 . 1 1 2 1 2 2 1 2 Gunslinging 1 | . 1 . . . . . . . . . . . . . . . . . . . . . . Exploded 5 | . 2 2 3 . . . 2 5 . 4 . 2 3 . . . . 1 . 1 1 . 1 Melee 1 | . . . . 1 . . . . . . . . . . . . . 1 . 1 . . . Uniques/NPCs Destroyed 2 | . . . . . . . . . . . . . . . . . . . 1 . . 1 . A5 (-3/Lab) Superfortress (-2/Protoforge) Combat | -11 -10 -10 -8 -7 -7 -7 -5 -5 -5 -5 -4 -4 -4 -4 -4 -3 -3 -3 -3 -2 -2 -2 -1 -------- Run | Yrd Mat Sub Mat Fac Sto Rec Fac Upp Upp War Pro Fac Upp Upp Zhi Pro Res Arm Lab Res Qua Frg Acc Hostile Shots Fired 2057 | . 37 46 120 51 197 46 107 76 26 49 6 44 49 5 . 92 54 163 6 331 206 57 289 Missed 755 | . 15 17 31 10 70 19 33 36 15 16 5 17 15 1 . 29 26 55 3 133 90 15 104 Intercepted 7 | . . . . . . . . . . . . . . . . . . . . . . . 7 Deflected 3 | . . . . . . . . . . . . . . . . . . . . 3 . . . Hits 1302 | . 22 29 89 41 127 27 74 40 11 33 1 27 34 4 . 63 28 108 3 198 116 42 185 Melee 48 | . . . 26 . 1 . . . . . . . . . . . . 3 . . . . 18 Projectile 1254 | . 22 29 63 41 126 27 74 40 11 33 1 27 34 4 . 63 28 105 3 198 116 42 167 AOE 3 | . . . . . . . . . . 1 . . . . . . . . . . . . 2 Critical Strikes 59 | . . . 5 2 4 . 1 1 1 3 . 1 . . . 1 . 5 . 3 6 3 23 Actively Blocked 9 | . . . . 2 . . . . . . . . . . . . . . . . 2 . 5 Part Disruptions 2 | . . . . 2 . . . . . . . . . . . . . . . . . . . Damage Taken 26351 | . 254 581 1206 676 1523 269 1455 790 278 975 23 588 687 58 . 1188 441 1493 78 4818 4044 1059 3867 Core 2336 | . 45 99 288 31 210 6 191 63 42 173 . 42 110 18 . 167 66 100 . 272 171 36 206 Absorbed by Shields 2664 | . . . . . . . . . . 57 . . . 22 . 806 . 835 . . . 291 653 Reduced by Siege Mode 188 | . . . . . . . . . . . . . . . . . . . . . 188 . . Redirected to Shielding 104 | . . . . 104 . . . . . . . . . . . . . . . . . . . Ignored by Resistances 356 | . . . . . . . . . . . . . . . . . . . . . 356 . . Regen/Repaired (Parts) 14343 | . . . . . . 56 148 233 546 658 . 519 480 183 . . 756 1196 . 3533 2767 218 3050 Core Remaining (%) 62 | 100 . 17 20 . . 45 . . . . 83 . . . . 62 . . 76 . . 78 77 Volleys Fired 1183 | 11 36 23 74 39 73 20 62 25 8 98 8 21 22 24 4 41 28 103 10 145 125 53 130 Largest 4 | 2 2 3 4 3 4 3 2 1 2 2 2 3 2 1 1 1 1 1 1 1 2 1 1 Hottest 260 | 60 60 113 260 195 178 117 148 174 218 212 170 251 170 99 99 99 99 99 74 74 128 98 98 Shots Fired 1589 | 22 70 38 143 82 163 38 111 25 8 120 13 30 38 23 4 37 28 103 10 145 160 53 125 Gun 311 | 22 66 26 23 . 115 33 24 . 1 1 . . . . . . . . . . . . . Cannon 1209 | . . 6 111 81 48 5 50 21 7 115 13 30 38 23 4 37 28 103 10 145 160 53 121 Launcher 66 | . 4 3 9 1 . . 37 4 . 4 . . . . . . . . . . . . 4 Special 3 | . . 3 . . . . . . . . . . . . . . . . . . . . . Kinetic 701 | 11 33 30 15 . 56 27 24 13 1 42 5 9 12 22 4 37 16 93 . 93 158 . . Thermal 483 | . . 5 111 79 84 11 50 8 7 69 . . 10 . . . . . . . . . 49 Explosive 29 | . 4 3 9 1 . . . 4 . 4 . . . . . . . . . . . . 4 Electromagnetic 200 | 11 33 . 8 2 23 . 37 . . 4 8 21 16 1 . . 12 9 . 15 . . . Entropic 176 | . . . . . . . . . . 1 . . . . . . . 1 10 37 2 53 72 Robot Hit Streak 31 | 3 9 15 15 17 30 17 31 5 4 18 3 12 14 4 8 8 18 10 8 10 27 20 9 Robot Miss Streak 8 | 3 5 3 4 4 2 1 5 5 1 8 3 2 3 1 . 1 2 3 . 3 3 4 6 Penetration Max 1 | . . . . . . . . . . 1 . . . . . . . . . . . . . Secondary Targets 4 | . 2 . 1 . 1 . . . . . . . . . . . . . . . . . . Max Gunslinging Chain 1 | . 1 . 1 . 1 . . . . . . . . . . . . . . . . . . Capacitor 110 | . . . . . . . . . . . . . . . . . . . . . . 38 72 Shots Hit Robots 1043 | 11 34 22 104 55 127 30 66 11 4 75 8 24 24 16 4 29 23 52 5 103 112 39 65 Core Hits 597 | 4 23 10 44 24 55 10 85 25 2 80 2 13 18 7 1 5 11 22 2 43 62 14 35 Critical Kills . | . . . . . . . . . . . . . . . . . . . . . . . . Critical Parts Destroyed 1 | . . . . . . . . . . . . . . . . . . . . . . . 1 Critical Strikes 4 | . . . 1 . 2 . . . . . . . . . . . . . . . . . 1 Burn 2 | . . . . . 2 . . . . . . . . . . . . . . . . . . Destroy 1 | . . . . . . . . . . . . . . . . . . . . . . . 1 Sever 1 | . . . 1 . . . . . . . . . . . . . . . . . . . . Melee Attacks 55 | . . . 18 28 9 . . . . . . . . . . . . . . . . . . Impact . | . . . . . . . . . . . . . . . . . . . . . . . . Slashing 55 | . . . 18 28 9 . . . . . . . . . . . . . . . . . . Piercing . | . . . . . . . . . . . . . . . . . . . . . . . . Sneak Attacks 24 | . . . 18 6 . . . . . . . . . . . . . . . . . . . Combat Hostiles . | . . . . . . . . . . . . . . . . . . . . . . . . Follow-up Attacks . | . . . . . . . . . . . . . . . . . . . . . . . . Damage Inflicted 121924 | 147 1000 478 4226 2060 2951 643 5652 1323 580 11498 555 2474 2327 2100 438 3808 2734 9050 763 18329 17483 10297 21008 Guns 4081 | 147 467 264 389 . 1885 551 293 . . 85 . . . . . . . . . . . . . Cannons 103579 | . . 43 1749 1339 1029 92 1242 494 580 10486 555 1948 2134 2100 438 3808 2734 8525 763 16748 16551 10297 19924 Explosions 11793 | . 516 171 975 171 37 . 4117 829 . 927 . 526 193 . . . . 453 . 862 932 . 1084 Melee 1635 | . . . 1113 522 . . . . . . . . . . . . . . . . . . . Ramming 836 | . 17 . . 28 . . . . . . . . . . . . . 72 . 719 . . . Kinetic 52180 | 81 151 267 243 . 755 455 293 241 . 4780 379 1184 784 1969 438 3808 1726 8392 . 9959 16275 . . Thermal 24600 | . 140 40 1749 1308 1660 188 2014 253 580 5671 . 469 1030 . . . . 453 . 862 932 . 7251 Explosive 4154 | . 376 171 975 52 . . . 829 . 927 . 57 . . . . . . . . . . 767 Electromagnetic 9645 | 66 316 . 146 150 536 . 3345 . . 35 176 764 513 131 . . 1008 . . 2459 . . . Impact . | . . . . . . . . . . . . . . . . . . . . . . . . Slashing 1635 | . . . 1113 522 . . . . . . . . . . . . . . . . . . . Piercing . | . . . . . . . . . . . . . . . . . . . . . . . . Entropic 28874 | . . . . . . . . . . 85 . . . . . . . 133 763 4330 276 10297 12990 Highest Corruption 46 | . 2 4 10 3 16 16 7 31 41 41 16 . . 46 46 46 . 2 1 2 7 5 27 Average Corruption 10 | . 2 2 10 2 3 16 6 12 37 14 15 . . 9 46 46 . 2 1 1 4 3 20 Corruption Purged . | . . . . . . . . . . . . . . . . . . . . . . . . Corruption Blocked . | . . . . . . . . . . . . . . . . . . . . . . . . Effects 303 | . 12 8 9 7 22 53 8 15 15 34 5 . . 20 13 16 . 3 2 1 22 3 35 Message Errors 64 | . 1 . 1 2 7 14 1 2 1 9 1 . . 7 4 6 . . . . 3 1 4 Matter Fused 70 | . 4 4 2 2 4 11 3 2 4 6 2 . . 5 1 1 . . 2 1 7 1 8 Heat Flow Errors 48 | . 1 2 1 . 3 8 2 3 5 5 . . . 3 3 1 . 1 . . 2 1 7 Energy Discharges 39 | . 2 1 . 1 4 8 1 4 . 4 1 . . 3 2 2 . 1 . . 1 . 4 Parts Rejected 3 | . . . . . . . . . . . . . . 1 . . . . . . 1 . 1 Parts Fused 3 | . . . . . . . . . 1 . . . . . 1 . . . . . 1 . . Data Loss (minor) 25 | . 1 . 1 1 1 4 . 2 1 3 1 . . . 1 1 . . . . 5 . 3 Data Loss (major) 16 | . 1 1 1 1 1 3 . . 1 3 . . . . 1 . . 1 . . . . 2 Misfires 10 | . 2 . 2 . 2 2 1 . . 1 . . . . . . . . . . . . . Alerts 4 | . . . . . . . . . . 1 . . . . . 1 . . . . 2 . . Misdirections 7 | . . . 1 . . 2 . 2 1 . . . . . . . . . . . . . 1 Weapon Failures 14 | . . . . . . 1 . . 1 2 . . . 1 . 4 . . . . . . 5 Overload Shots 19 | . . . . . 3 . 16 . . . . . . . . . . . . . . . . Effects 1 | . . . . . . . 1 . . . . . . . . . . . . . . . . Energy Bleed 1 | . . . . . . . 1 . . . . . . . . . . . . . . . . Overflow Damage 19164 | . 87 35 196 113 26 . 230 174 156 1875 174 345 164 99 35 32 256 1693 26 3553 2500 1661 5734 Projectiles 18203 | . . . 16 58 26 . 34 172 156 1875 174 257 164 99 35 32 256 1693 26 3300 2463 1661 5706 Explosions 722 | . 87 35 155 . . . 196 2 . . . 88 . . . . . . . 94 37 . 28 Melee 239 | . . . 25 55 . . . . . . . . . . . . . . . 159 . . . Knockbacks 108 | . . . . . . . . 1 . 13 1 1 . 2 . 3 2 22 . 35 28 . . Impact 3 | . . . . . . . . . . . . . . . . . . . . 3 . . . Kinetic 93 | . . . . . . . . 1 . 11 1 1 . 2 . 3 2 19 . 30 23 . . Secondary 12 | . . . . . . . . . . 2 . . . . . . . 3 . 2 5 . . Self-Inflicted Damage 712 | . 56 55 100 49 . . 18 49 . . . 43 . . . . . 100 . 65 119 . 58 Shots 18 | . 2 2 2 1 . . 1 2 . . . 1 . . . . . 2 . 2 2 . 1 Rammed 6 | . 3 . . 2 . . . . . . . . . . . . . . . 1 . . . Targets Rammed 29 | . 4 . . 2 . . . . . . . . . . . . . 4 . 19 . . . Kicked 22 | . . . . . . . . . . . . . . . . . . 4 . 18 . . . Crushed 1 | . 1 . . . . . . . . . . . . . . . . . . . . . . Highest Temperature 585 | . 249 84 431 360 392 255 240 359 218 390 200 333 237 236 131 132 . 267 . 585 404 191 375 Average Temperature 124 | . 53 46 152 102 123 91 82 95 97 139 121 179 131 105 74 69 . 153 . 134 122 113 112 Received Heat Transfer 3520 | . 24 81 333 171 480 36 390 231 91 159 . 36 . 11 . 348 30 65 . 706 99 50 179 Effects 30 | . . . 7 . 4 1 . . . 1 . 3 . . . . . . . 6 5 . 3 Shutdowns 6 | . . . 3 . 1 . . . . . . . . . . . . . . 1 . . 1 Energy Bleed 13 | . . . 2 . 2 1 . . . 1 . . . . . . . . . 3 2 . 2 Interference 7 | . . . 1 . 1 . . . . . . 2 . . . . . . . 1 2 . . Short Circuit 2 | . . . 1 . . . . . . . . 1 . . . . . . . . . . . Damage (minor) 2 | . . . . . . . . . . . . . . . . . . . . 1 1 . . Siege Activations 3 | . . . . . . . . . . . . . . . . . . . . . 3 . . Total Turns 68 | . . . . . . . . . . . . . . . . . . . . . 68 . . Longest Duration 34 | . . . . . . . . . . . . . . . . . . . . . 34 . . Martial Activations . | . . . . . . . . . . . . . . . . . . . . . . . . Shielding Activations 1 | . . . . . . . . . . . . . . . . . . . . 1 . . . Total Turns 11 | . . . . . . . . . . . . . . . . . . . . 11 . . . Longest Duration 11 | . . . . . . . . . . . . . . . . . . . . 11 . . . Robots Disrupted 2 | . . . 1 . . . 1 . . . . . . . . . . . . . . . . Combat Hostiles 2 | . . . 1 . . . 1 . . . . . . . . . . . . . . . . Robots Corrupted 36 | . . . 1 . 1 . 8 . . . 1 4 1 . . . 3 1 . 13 3 . . Combat Hostiles 31 | . . . 1 . 1 . 7 . . . 1 4 1 . . . 3 1 . 9 3 . . Parts Fried 93 | . . . 2 . 4 . 25 . . . 2 6 1 1 . . 11 . . 36 5 . . Impact Corruptions 26 | . . . . . . . . . . 1 . . . . . . . 7 . 13 5 . . Robots Melted 5 | . . . . . 1 . . . . . . . . . . . . . . . 4 . . Combat Hostiles 4 | . . . . . 1 . . . . . . . . . . . . . . . 3 . . Parts Melted 72 | . . . 5 3 18 3 . . . 5 . 2 2 . . . . 2 . . 32 . . Heat Transferred 14058 | . 100 50 2405 1665 2909 518 2005 37 148 1312 . 400 459 . . . . 250 . 750 800 . 250 Parts Sabotaged 1 | . . . . . . . . . . . . . . . . . . 1 . . . . . Parts Stolen 2 | . . . 2 . . . . . . . . . . . . . . . . . . . . Parts Stripped . | . . . . . . . . . . . . . . . . . . . . . . . . Power Chain Reactions 29 | . 3 . . . 1 . 2 . . . . 1 2 . . . . 4 . 6 7 . 3 Alert | -11 -10 -10 -8 -7 -7 -7 -5 -5 -5 -5 -4 -4 -4 -4 -4 -3 -3 -3 -3 -2 -2 -2 -1 ------- Run | Yrd Mat Sub Mat Fac Sto Rec Fac Upp Upp War Pro Fac Upp Upp Zhi Pro Res Arm Lab Res Qua Frg Acc Maximum Alert Level 5 | . . . 2 2 2 . 4 . . . . 2 . . . . 1 3 . 5 5 5 5 Low Security (%) 36 | 100 100 . 46 28 13 100 58 . . . . 21 . . . . 68 45 . 5 . . . Level 1 17 | . . . 16 63 71 . 3 . . . . 51 . . . . 31 3 . 10 . . . Level 2 8 | . . . 37 8 15 . 4 . . . . 27 . . . . . 4 . 17 . . . Level 3 7 | . . . . . . . 12 . . . . . . . . . . 47 . 27 . . 10 Level 4 8 | . . . . . . . 20 . . . . . . . . . . . . 19 21 20 20 Level 5 2 | . . . . . . . . . . . . . . . . . . . . 9 2 39 1 High Security 19 | . . . . . . . . . . . . . . . . . . . . 8 75 40 68 Max Security . | . . . . . . . . . . . . . . . . . . . . . . . . Peak Influence 2970 | 10 139 . 613 433 500 190 1277 . . . . 605 . . . . 288 1076 . 1629 2970 1823 2550 Initial 1633 | . . . . 273 184 190 209 . . . . 165 . . . . . 140 . . 1100 1633 1100 Average 801 | 1 59 . 274 239 293 44 481 . . . . 319 . . . . 112 538 . 931 2258 1666 1864 Influence Increases 15467 | 20 430 90 1027 577 914 183 1590 265 125 1156 50 670 256 180 5 110 395 1246 . 1999 2209 310 1660 Destroy 0b10 Robot/C 7920 | . 220 60 520 160 460 80 560 160 40 940 40 180 220 160 . 80 280 560 . 940 1160 220 880 Destroy 0b10 Robot/NC 600 | 20 50 . 55 65 30 5 70 5 . 35 10 20 . . 5 . 15 5 . 100 40 15 55 Destroy Leader 1390 | . 36 . 164 54 108 . 112 10 10 . . 40 30 20 . . 64 82 . 222 196 32 210 Allied During Kill 530 | . . . 12 . 125 16 2 . . 136 . . 6 . . . . . . . 213 . 20 Successful Hack 73 | . . . 5 24 10 18 . . . . . 16 . . . . . . . . . . . Select Force Hacks 60 | . . . . . . 60 . . . . . . . . . . . . . . . . . Disable Machine 780 | . 45 . 75 45 90 . 120 . . . . 120 . . . . 15 75 . . 120 15 60 Anti-Garrison Action 450 | . . . . . . . 150 . . . . . . . . . . . . 150 150 . . Destroy Structure 1244 | . 34 . 121 30 16 4 120 . . . . 144 . . . . 6 162 . 204 150 28 225 Advance Influence 350 | . . . . . . . 200 . . . . 150 . . . . . . . . . . . Partial Spotted 60 | . . . . . . . . . . . . . . . . . . . . 30 15 . 15 Lose Combat Pursuer 1110 | . 45 30 75 15 75 . 30 90 75 45 . . . . . 30 15 90 . 135 165 . 195 Miscellaneous 900 | . . . . 184 . . 226 . . . . . . . . . . 272 . 218 . . . Influence Decreases 13138 | 20 320 200 426 772 832 647 397 684 302 953 849 90 365 515 166 110 127 508 1006 387 1110 1392 960 Entered New Map 7299 | . . 54 . 328 222 298 15 452 152 621 824 10 225 95 161 . . 128 1006 . 706 1272 730 Time Decay 5022 | 20 310 146 386 434 440 292 302 222 130 232 25 80 140 410 5 110 127 380 . 357 214 120 140 Lost Part 360 | . 10 . 40 10 90 10 60 10 20 10 . . . 10 . . . . . 30 50 . 10 Lost Ally 457 | . . . . . 80 47 20 . . 90 . . . . . . . . . . 140 . 80 Squads Dispatched 144 | . 1 . 10 9 7 . 14 . . . . . . . . . 3 8 . 6 51 6 29 Investigation 6 | . . . 2 2 1 . . . . . . . . . . . . . . 1 . . . Extermination 10 | . . . . 3 2 . . . . . . . . . . . 1 2 . . 1 . 1 Reinforcement 32 | . 1 . 4 4 . . 8 . . . . . . . . . 1 4 . 3 4 1 2 Assault 83 | . . . . . 4 . 4 . . . . . . . . . 1 2 . . 46 4 22 Garrison 9 | . . . 4 . . . 2 . . . . . . . . . . . . . . . 3 Intercept 4 | . . . . . . . . . . . . . . . . . . . . 2 . 1 1 Searches Triggered . | . . . . . . . . . . . . . . . . . . . . . . . . Construction Impeded 4 | . . . 1 1 . . 1 . . . . . . . . . . . . . 1 . . Haulers Reinforced 12 | . . . . 1 . . 6 . . . . . . . . . 1 . . 2 1 . 1 Active Scanning Responses . | . . . . . . . . . . . . . . . . . . . . . . . . Cargo Convoy Interrupts . | . . . . . . . . . . . . . . . . . . . . . . . . Stealth | -11 -10 -10 -8 -7 -7 -7 -5 -5 -5 -5 -4 -4 -4 -4 -4 -3 -3 -3 -3 -2 -2 -2 -1 --------- Run | Yrd Mat Sub Mat Fac Sto Rec Fac Upp Upp War Pro Fac Upp Upp Zhi Pro Res Arm Lab Res Qua Frg Acc Distress Signals 35 | . 1 . 6 1 . 1 1 . . . . 1 . . . . 2 3 . 12 3 . 4 Communications Jammed 4 | . . . . . . . 4 . . . . . . . . . . . . . . . . Distress Signals 4 | . . . . . . . 4 . . . . . . . . . . . . . . . . Times Spotted 722 | . 18 15 37 21 40 10 41 17 8 128 3 12 12 6 . 7 16 44 1 86 88 18 94 Peak Tracking Total 19 | . 4 12 5 3 6 3 10 5 5 17 2 3 5 3 . 5 6 9 1 11 14 4 19 Tactical Retreats 51 | . 1 1 5 1 2 . 2 4 2 2 . . . . . 2 1 4 . 8 9 . 7 Traps | -11 -10 -10 -8 -7 -7 -7 -5 -5 -5 -5 -4 -4 -4 -4 -4 -3 -3 -3 -3 -2 -2 -2 -1 ------- Run | Yrd Mat Sub Mat Fac Sto Rec Fac Upp Upp War Pro Fac Upp Upp Zhi Pro Res Arm Lab Res Qua Frg Acc Traps Triggered 15 | . 1 . . 2 2 . . . . 2 . 1 . . . . . . . . 5 . 2 Indirectly . | . . . . . . . . . . . . . . . . . . . . . . . . Trap Hack Attempts . | . . . . . . . . . . . . . . . . . . . . . . . . Triggered . | . . . . . . . . . . . . . . . . . . . . . . . . Disarmed . | . . . . . . . . . . . . . . . . . . . . . . . . Reprogrammed . | . . . . . . . . . . . . . . . . . . . . . . . . Reused . | . . . . . . . . . . . . . . . . . . . . . . . . Traps Extracted . | . . . . . . . . . . . . . . . . . . . . . . . . Installed . | . . . . . . . . . . . . . . . . . . . . . . . . Triggered . | . . . . . . . . . . . . . . . . . . . . . . . . Most Traps Carried 1 | . . 1 . . . . . . . . . . . . . . . . . . . . . Time Bombs Activated 2 | . . . . . . . . . . 2 . . . . . . . . . . . . . Exploded 1 | . . . . . . . . . . 1 . . . . . . . . . . . . . Machines | -11 -10 -10 -8 -7 -7 -7 -5 -5 -5 -5 -4 -4 -4 -4 -4 -3 -3 -3 -3 -2 -2 -2 -1 ---------- Run | Yrd Mat Sub Mat Fac Sto Rec Fac Upp Upp War Pro Fac Upp Upp Zhi Pro Res Arm Lab Res Qua Frg Acc Machines Disabled 62 | . 3 1 5 3 6 . 9 . . 3 . 8 1 . . . 1 5 1 1 9 2 4 Max in Single Turn 6 | . 2 1 1 1 1 . 6 . . 1 . 5 1 . . . 1 1 1 1 1 1 1 Garrison Access 5 | . . . . . 1 . 1 . . . . . . . . . . . . 2 1 . . Machines Repaired . | . . . . . . . . . . . . . . . . . . . . . . . . Machines Dismantled . | . . . . . . . . . . . . . . . . . . . . . . . . Machines Sabotaged . | . . . . . . . . . . . . . . . . . . . . . . . . Overloaded Fab Kills . | . . . . . . . . . . . . . . . . . . . . . . . . Hacking | -11 -10 -10 -8 -7 -7 -7 -5 -5 -5 -5 -4 -4 -4 -4 -4 -3 -3 -3 -3 -2 -2 -2 -1 --------- Run | Yrd Mat Sub Mat Fac Sto Rec Fac Upp Upp War Pro Fac Upp Upp Zhi Pro Res Arm Lab Res Qua Frg Acc Machines Accessed 46 | . 1 2 3 6 6 9 1 1 . 1 . 3 1 2 4 . . . 1 1 2 1 1 Terminals 26 | . 1 . 3 4 6 5 1 . . . . 2 . . . . . . . 1 1 1 1 Fabricators 1 | . . . . . . . . . . . . 1 . . . . . . . . . . . Repair Stations 1 | . . . . 1 . . . . . . . . . . . . . . . . . . . Recycling Units 3 | . . . . . . 3 . . . . . . . . . . . . . . . . . Scanalyzers 1 | . . . . . . . . . . . . . . . . . . . . . 1 . . Garrison Access 1 | . . . . 1 . . . . . . . . . . . . . . . . . . . Total Hacks 104 | . 1 6 4 15 9 22 2 1 . 1 . 4 1 7 17 . . . 1 3 5 3 2 Successful 54 | . 1 6 1 3 4 9 . 1 . 1 . 1 1 7 17 . . . 1 . 1 . . Failed 50 | . . . 3 12 5 13 2 . . . . 3 . . . . . . . 3 4 3 2 Catastrophic 16 | . . . . 5 3 3 1 . . . . 1 . . . . . . . 1 1 . 1 Database Lockouts . | . . . . . . . . . . . . . . . . . . . . . . . . Manual 45 | . 6 . 3 8 6 19 . . . . . . . . . . . . . 3 . . . Terminals 55 | . 1 . 4 10 9 14 2 . . . . 3 . . . . . . . 3 4 3 2 Fabricators 1 | . . . . . . . . . . . . 1 . . . . . . . . . . . Repair Stations 2 | . . . . 2 . . . . . . . . . . . . . . . . . . . Recycling Units 6 | . . . . . . 6 . . . . . . . . . . . . . . . . . Scanalyzers 1 | . . . . . . . . . . . . . . . . . . . . . 1 . . Garrison Access 3 | . . . . 3 . . . . . . . . . . . . . . . . . . . Terminal Hacks 41 | . . 6 1 1 2 2 . 1 . 1 . 1 1 7 17 . . . 1 . . . . Record 16 | . . 5 . . . . . . . . . . . 6 5 . . . . . . . . Part Schematic 4 | . . . . . . . . . . . . . . . 4 . . . . . . . . Robot Analysis 4 | . . . . . . . . . . . . . . . 4 . . . . . . . . Prototype ID Bank 4 | . . . . . . . . . . . . . . . 4 . . . . . . . . Open Door 6 | . . . . . 2 . . 1 . 1 . . 1 1 . . . . . . . . . Branch Access Points 2 | . . . . 1 . . . . . . . 1 . . . . . . . . . . . Hauler Manifests 1 | . . . 1 . . . . . . . . . . . . . . . . . . . . Proto ID Catalog 1 | . . 1 . . . . . . . . . . . . . . . . . . . . . Release Object 3 | . . . . . . 2 . . . . . . . . . . . . 1 . . . . Fabricator Hacks . | . . . . . . . . . . . . . . . . . . . . . . . . Repair Station Hacks 1 | . . . . 1 . . . . . . . . . . . . . . . . . . . Scan Component 1 | . . . . 1 . . . . . . . . . . . . . . . . . . . Recycling Unit Hacks . | . . . . . . . . . . . . . . . . . . . . . . . . Scanalyzer 1 | . . . . . . . . . . . . . . . . . . . . . 1 . . Insert Component 1 | . . . . . . . . . . . . . . . . . . . . . 1 . . Garrison Access Hacks . | . . . . . . . . . . . . . . . . . . . . . . . . Unauthorized Hacks 11 | . 1 . . 1 2 7 . . . . . . . . . . . . . . . . . Terminals 9 | . 1 . . 1 2 5 . . . . . . . . . . . . . . . . . Botnet 5 | . 1 . . 1 2 1 . . . . . . . . . . . . . . . . . Skim 4 | . . . . . . 4 . . . . . . . . . . . . . . . . . Fabricators . | . . . . . . . . . . . . . . . . . . . . . . . . Repair Stations . | . . . . . . . . . . . . . . . . . . . . . . . . Recycling Units 2 | . . . . . . 2 . . . . . . . . . . . . . . . . . Tunnel 2 | . . . . . . 2 . . . . . . . . . . . . . . . . . Scanalyzers . | . . . . . . . . . . . . . . . . . . . . . . . . Garrison Access . | . . . . . . . . . . . . . . . . . . . . . . . . Data Cores Recovered 1 | . 1 . . . . . . . . . . . . . . . . . . . . . . Used . | . . . . . . . . . . . . . . . . . . . . . . . . Hacking Detections 25 | . . . 1 5 4 6 1 . . . . 3 . . . . . . . 1 2 1 1 Full Trace Events 6 | . . . 1 1 1 2 . . . . . . . . . . . . . 1 . . . Feedback Events . | . . . . . . . . . . . . . . . . . . . . . . . . Feedback Blocked . | . . . . . . . . . . . . . . . . . . . . . . . . Robot Schematics Acquired 4 | . . . . . . . . . . . . . . . . . . . . . 4 . . Robots Built . | . . . . . . . . . . . . . . . . . . . . . . . . Authchips . | . . . . . . . . . . . . . . . . . . . . . . . . Time . | . . . . . . . . . . . . . . . . . . . . . . . . Total Robot Build Rating . | . . . . . . . . . . . . . . . . . . . . . . . . Part Schematics Acquired 14 | . . . . . . . . . . . . . . . 4 . . . . . 10 . . Parts Built . | . . . . . . . . . . . . . . . . . . . . . . . . Authchips . | . . . . . . . . . . . . . . . . . . . . . . . . Time . | . . . . . . . . . . . . . . . . . . . . . . . . Total Part Build Rating . | . . . . . . . . . . . . . . . . . . . . . . . . Part Studies Acquired . | . . . . . . . . . . . . . . . . . . . . . . . . Parts Repaired . | . . . . . . . . . . . . . . . . . . . . . . . . Time . | . . . . . . . . . . . . . . . . . . . . . . . . Parts Recycled . | . . . . . . . . . . . . . . . . . . . . . . . . Recycled Matter . | . . . . . . . . . . . . . . . . . . . . . . . . Retrieved Matter . | . . . . . . . . . . . . . . . . . . . . . . . . Retrieved Components . | . . . . . . . . . . . . . . . . . . . . . . . . Parts Scanalyzed . | . . . . . . . . . . . . . . . . . . . . . . . . Part Schematics Acquired . | . . . . . . . . . . . . . . . . . . . . . . . . Parts Damaged . | . . . . . . . . . . . . . . . . . . . . . . . . Bothacking | -11 -10 -10 -8 -7 -7 -7 -5 -5 -5 -5 -4 -4 -4 -4 -4 -3 -3 -3 -3 -2 -2 -2 -1 ------------ Run | Yrd Mat Sub Mat Fac Sto Rec Fac Upp Upp War Pro Fac Upp Upp Zhi Pro Res Arm Lab Res Qua Frg Acc Used RIF Installer . | . . . . . . . . . . . . . . . . . . . . . . . . Robots Hacked . | . . . . . . . . . . . . . . . . . . . . . . . . Non-combat . | . . . . . . . . . . . . . . . . . . . . . . . . Combat . | . . . . . . . . . . . . . . . . . . . . . . . . Robot Hacks Applied . | . . . . . . . . . . . . . . . . . . . . . . . . Relay Couplers Released 7 | . . . . . 2 . 2 . . . . . . . . . . . . . 3 . . Machine Destruction 7 | . . . . . 2 . 2 . . . . . . . . . . . . . 3 . . Fabnet Peak Effective % . | . . . . . . . . . . . . . . . . . . . . . . . . Robots Rewired 6 | . . . . . . . . . . 5 . . 1 . . . . . . . . . . Allies Hacked 2 | . . . . . . . . . . 1 . . . . . . . . . . . . 1 Hacks Repelled . | . . . . . . . . . . . . . . . . . . . . . . . . Allies | -11 -10 -10 -8 -7 -7 -7 -5 -5 -5 -5 -4 -4 -4 -4 -4 -3 -3 -3 -3 -2 -2 -2 -1 -------- Run | Yrd Mat Sub Mat Fac Sto Rec Fac Upp Upp War Pro Fac Upp Upp Zhi Pro Res Arm Lab Res Qua Frg Acc Total Allies 41 | . . 1 1 . 12 . 1 . . 7 . . 1 . . . . . . . 13 . 5 Largest Group 10 | . . 1 1 . 10 7 1 . . 5 1 . 1 . . . . . . . 5 . 2 Highest-Rated Group 356 | . . 20 116 . 173 125 41 . . 260 42 . 43 . . . . . . . 356 . 78 Highest-Rated Ally 119 | . . 20 116 . 31 29 41 . . 68 42 . 43 . . . . . . . 119 . 39 Total Orders 10 | . . . . . . . . . . 6 . . . . . . 1 3 . . . . . STAY 2 | . . . . . . . . . . 2 . . . . . . . . . . . . . FOLLOW 3 | . . . . . . . . . . 3 . . . . . . . . . . . . . AID 1 | . . . . . . . . . . 1 . . . . . . . . . . . . . RETURN 4 | . . . . . . . . . . . . . . . . . 1 3 . . . . . Ally Attacks 220 | . . 3 21 . 40 28 2 . . 50 . . 1 . . . . . . . 60 . 15 Total Damage 5482 | . . 57 802 . 535 427 44 . . 2139 . . 28 . . . . . . . 1039 . 411 Kills 36 | . . . 7 . 3 6 . . . 8 . . . . . . . . . . 9 . 3 Allies Corrupted 1 | . . . . . . . . . . 1 . . . . . . . . . . . . . Allies Melted 7 | . . . . . 1 . . . . 2 . . . . . . . . . 1 3 . . X0-1V1 Amusement Gains 596 | . 9 . 15 35 30 . 73 10 . 88 . 15 . . 10 . . 5 94 41 63 54 54 Good Acts 123 | . 1 8 5 3 10 7 5 1 5 13 3 1 5 4 . 1 . 3 . 11 22 7 8 Bad Acts 126 | . . 14 6 6 5 3 3 5 5 2 3 4 6 8 . 2 2 13 . 15 14 3 7 Intel | -11 -10 -10 -8 -7 -7 -7 -5 -5 -5 -5 -4 -4 -4 -4 -4 -3 -3 -3 -3 -2 -2 -2 -1 ------- Run | Yrd Mat Sub Mat Fac Sto Rec Fac Upp Upp War Pro Fac Upp Upp Zhi Pro Res Arm Lab Res Qua Frg Acc Active Infowar (turns) 4092 | 67 705 . . 850 346 2 674 242 . 171 . 1 . . . . . . . 200 189 93 552 Optics 171 | . . . . . . . . . . 171 . . . . . . . . . . . . . Terrain 3 | . . . . . . 2 . . . . . 1 . . . . . . . . . . . Seismic 3056 | 67 705 . . 850 345 . 233 . . . . . . . . . . . . 121 189 . 546 Jamming 1094 | . . . . . . . 674 242 . . . . . . . . . . . 79 . 93 6 ECM 1 | . . . . . 1 . . . . . . . . . . . . . . . . . . Robot Analysis Total 4 | . . . . . . . . . . . . . . . 4 . . . . . . . . Derelict Logs Recovered 10 | . . 1 . . . . . 2 2 . 2 . 2 1 . . . . . . . . . Drone Launches 15 | . . . . . . . . . . . . . . . . . 3 12 . . . . . Drone Recoveries 12 | . . . . . . . . . . . . . . . . . 3 9 . . . . . Exploration | -11 -10 -10 -8 -7 -7 -7 -5 -5 -5 -5 -4 -4 -4 -4 -4 -3 -3 -3 -3 -2 -2 -2 -1 ------------- Run | Yrd Mat Sub Mat Fac Sto Rec Fac Upp Upp War Pro Fac Upp Upp Zhi Pro Res Arm Lab Res Qua Frg Acc Turns Passed 16963 | 141 858 1003 1086 1064 1082 1180 675 461 278 1460 110 178 293 996 248 256 399 892 160 942 1853 412 936 Spaces Moved 12879 | 61 448 567 809 738 561 773 297 515 249 1166 245 217 608 558 148 113 195 507 200 882 1999 341 682 Core 30 | 3 . 27 . . . . . . . . . . . . . . . . . . . . . Treads 1629 | 58 448 540 . . . . . . 53 . . . . 52 . . . . . 7 471 . . Legs 4131 | . . . . . . . . 193 87 231 . 72 607 . . . 59 259 200 292 1360 341 430 Wheels 2754 | . . . 809 738 561 646 . . . . . . . . . . . . . . . . . Hover 2512 | . . . . . . 127 297 322 83 359 245 145 1 506 148 113 115 . . . 27 . 24 Flight 1823 | . . . . . . . . . 26 576 . . . . . . 21 248 . 583 141 . 228 Fastest Speed 30 | 50 160 50 80 101 105 120 52 48 76 30 34 34 34 80 156 156 88 60 60 44 40 66 63 Average Speed 90 | 154 160 154 84 105 121 137 150 62 97 63 34 39 34 161 156 156 148 87 60 51 61 70 71 Slowest Speed 231 | 160 160 160 105 120 150 231 176 131 162 107 34 73 42 184 156 156 156 88 60 83 119 105 105 Overloaded Moves 19 | . . . . . . . . 4 . 2 . . . 1 . . 1 . . . . . 11 Propulsion Burnouts . | . . . . . . . . . . . . . . . . . . . . . . . . Robots Hopped 4 | . . . . . . . . . . . . . . . . . . . . 1 3 . . Potential Cave-ins 9 | . . 2 . . . . . . . 4 . . 1 . . . . . . . . . 2 Cave-ins Triggered . | . . . . . . . . . . . . . . . . . . . . . . . . Teleports 3 | . . . . . . . . . . . . . . . . . . 1 . . . 1 1 Exploration Rate (%) 50 | 5 76 42 70 24 91 97 12 64 50 80 43 11 81 76 60 23 6 43 98 31 96 14 20 Regions Visited 23 Branch Regions 15 Pre-discovered Areas 7 | . . . . . . 2 . . . . 1 . . 1 3 . . . . . . . . Known Exits Taken 9 | . . . 1 1 . . 1 . 1 . 1 1 1 . . . 1 . . . . 1 . Unknown Exits Taken 14 | 1 1 1 . . 1 1 . 1 . 1 . . . 1 1 1 . 1 1 1 1 . . Scrap Searched 21 | . . 5 . . . . . 2 2 . 2 . 4 4 . 2 . . . . . . . Spaces Dug 172 | . 7 3 . 26 4 1 57 34 1 4 . . 1 . . . . 7 . 2 7 1 17 Terrain Destroyed 945 | . 33 13 93 31 13 2 74 171 4 104 1 70 20 8 . 3 3 84 2 70 50 7 89 Melee 19 | . . . . 15 4 . . . . . . . . . . . . . . . . . . Projectile 267 | . . . 34 9 6 2 13 15 4 27 1 . 16 8 . 3 3 40 2 26 14 7 37 AOE 659 | . 33 13 59 7 3 . 61 156 . 77 . 70 4 . . . . 44 . 44 36 . 52 Terrain Rammed . | . . . . . . . . . . . . . . . . . . . . . . . . Walls Destroyed . | . . . . . . . . . . . . . . . . . . . . . . . . Machines Disabled . | . . . . . . . . . . . . . . . . . . . . . . . . Actions | -11 -10 -10 -8 -7 -7 -7 -5 -5 -5 -5 -4 -4 -4 -4 -4 -3 -3 -3 -3 -2 -2 -2 -1 --------- Run | Yrd Mat Sub Mat Fac Sto Rec Fac Upp Upp War Pro Fac Upp Upp Zhi Pro Res Arm Lab Res Qua Frg Acc Total 16887 | 82 517 655 1045 906 807 870 447 634 275 1760 258 285 658 629 160 154 289 900 237 1237 2513 505 1064 Wait 1747 | . 9 27 62 35 88 29 47 71 8 318 6 9 15 33 2 . 50 238 4 130 310 51 205 Move 12849 | 60 447 566 808 738 560 772 296 514 248 1165 244 216 607 557 147 112 194 506 199 880 1992 340 681 Hop 4 | . . . . . . . . . . . . . . . . . . . . 1 3 . . Pick Up 219 | 4 11 13 28 14 27 4 6 9 1 24 . 6 4 1 1 . 10 3 6 16 20 9 2 Fast Attach 123 | 7 . . 16 4 9 3 6 1 . 13 . 8 . 4 3 . . 10 7 8 8 11 5 Attach 101 | . 1 5 12 4 6 1 12 4 1 5 . 2 . 2 . . 3 4 . 8 10 11 10 Detach 69 | . . . 5 . 1 2 11 3 . 3 . . . 3 . . . 6 1 3 8 13 10 Swap 155 | . 7 7 7 21 17 3 3 2 5 22 . 2 . 1 1 1 2 13 . 7 12 3 19 Drop 254 | . 2 14 15 21 17 36 4 5 4 28 . 17 5 4 2 . 2 11 10 18 23 14 2 Fire 1183 | 11 36 23 74 39 73 20 62 25 8 98 8 21 22 24 4 41 28 103 10 145 125 53 130 Melee 55 | . . . 18 28 9 . . . . . . . . . . . . . . . . . . Ram 6 | . . . . 2 . . . . . . . . . . . . . 1 . 3 . . . Kick 22 | . . . . . . . . . . . . . . . . . . 4 . 18 . . . Crush 4 | . 4 . . . . . . . . . . . . . . . . . . . . . . Escape Stasis 6 | . . . . . . . . . . . . 4 . . . . . . . . 2 . . Rewire 87 | . . . . . . . . . . 81 . . 5 . . . . 1 . . . . . Trap 3 | . . . . . . . . . . 3 . . . . . . . . . . . . . Miscellaneous . | . . . . . . . . . . . . . . . . . . . . . . . . Route ------- -11/Scrapyard -10/Materials (discovered 5 exits: [*Mat x2] / [*Min x2] / *Sub) -10/Subcaves -8/Materials (discovered 3 exits: *Fac x3) -7/Factory (discovered 4 exits: *Sto x2 / Low x2) -7/Storage (discovered 2 exits: [*Fac] / *Rec) -7/Recycling -5/Factory -5/Upper Caves -5/Upper Caves (discovered 2 exits: *Fac / *War) -5/Warlord -4/Proximity Caves -4/Factory (discovered 2 exits: *Upp x2) -4/Upper Caves -4/Upper Caves (discovered 2 exits: [*Res] / *Zhi) -4/Zhirov -3/Proximity Caves -3/Research (discovered 3 exits: *Arm / Tes x2) -3/Armory (discovered 2 exits: Res / *Lab) -3/Lab -2/Research (discovered 3 exits: Acc x2 / *Qua) -2/Quarantine (discovered 3 exits: *Acc / [*Sec] / *Frg) -2/Protoforge -1/Access To Epsilon Eridani History --------- Turn | Location | Event 2 | -11/Scrapyard | Met Revision 17 9 | -11/Scrapyard | Discovered new exit (range 15) 142 | -11/Scrapyard | Entered Materials 207 | -10/Materials | Discovered new exit (range 12) 314 | -10/Materials | Build established: Mutant 419 | -10/Materials | Discovered new exit (range 3) 525 | -10/Materials | Discovered new exit (range 14) 835 | -10/Materials | Discovered new exit (range 10) 849 | -10/Materials | Prayed at D.C.S.S. Altar Unit 884 | -10/Materials | Discovered new exit (range 16) 887 | -10/Materials | Energy generation permanently improved by X0-1V1 (+10) 1000 | -10/Materials | Entered Subcaves 1290 | -10/Subcaves | Learned location of 1 exit from Materials 1321 | -10/Subcaves | Core integrity fell below 50% 1402 | -10/Subcaves | Propulsion slot count permanently improved by X0-1V1 (+1) 1587 | -10/Subcaves | X0-1V1 mutated your Propulsion slot to Weapon slot 1616 | -10/Subcaves | Disturbed a concealed Subdweller 1696 | -10/Subcaves | X0-1V1 activates XOMVISION 1800 | -10/Subcaves | Visited Clippyterm 1805 | -10/Subcaves | Learned Research security intel 1805 | -10/Subcaves | Learned Research machine intel 1848 | -10/Subcaves | Shifting Twisted Machinery released Sub. Beam Cannon 1872 | -10/Subcaves | Discovered new exit (range 5) 1873 | -10/Subcaves | Shifting Twisted Machinery released Barrage Gun 1925 | -10/Subcaves | Build established: Gunner 1932 | -10/Subcaves | Visited 4L-MR0's lab 1952 | -10/Subcaves | Found Maxwheels 1957 | -10/Subcaves | Found Prototype Device 1964 | -10/Subcaves | X0-1V1 activates XOMVISION 1980 | -10/Subcaves | X0-1V1 vaporized surrounding terrain (radius 16) 1989 | -10/Subcaves | Released all parts (8) 1992 | -10/Subcaves | X0-1V1 turns hostiles against one another 1993 | -10/Subcaves | X0-1V1 mutated your Weapon slot to Power slot 1994 | -10/Subcaves | Core integrity fell below 20% 2003 | -10/Subcaves | Entered Materials 2003 | -8/Materials | Evolved 4 slots: Propulsion x2, Utility x2 2004 | -8/Materials | Identified exit to Factory 2004 | -8/Materials | Attached Maxwheels, gained temporary slots: Weapon x2 2243 | -8/Materials | Sight range permanently improved by X0-1V1 (+1) 2280 | -8/Materials | Build established: Mutant 2295 | -8/Materials | X0-1V1 activates XOMVISION 2396 | -8/Materials | Garrison activated, responded to threat 2481 | -8/Materials | Imp. Cooling System reconfigured into Item Mimic 2500 | -8/Materials | X0-1V1 sent allied B-86 Titan (x1) 2536 | -8/Materials | Garrison activated, responded to threat 2625 | -8/Materials | Destroyed B-86 Titan 2760 | -8/Materials | Core integrity fell below 50% 2801 | -8/Materials | Discovered exit to Factory (range 10) 2935 | -8/Materials | System corruption reached 10% 3009 | -8/Materials | Discovered exit to Factory (range 15) 3089 | -8/Materials | Entered Factory 3089 | -7/Factory | Evolved 2 slots: Utility x1, Weapon x1 3558 | -7/Factory | Sensors blinded by X0-1V1 3845 | -7/Factory | Identified exit to Storage 3845 | -7/Factory | Identified exit to Lower Caves 4039 | -7/Factory | X0-1V1 added 0b10 threat records associated with you (considerable) 4153 | -7/Factory | Entered Storage 4276 | -7/Storage | X0-1V1 enhanced Transport squad support 4337 | -7/Storage | X0-1V1 whisked you away to safety 4384 | -7/Storage | Discovered new exit (range 12) 4390 | -7/Storage | X0-1V1 foreshadows a heat wave 4583 | -7/Storage | Ambient heat levels rising (+10) 4618 | -7/Storage | Weapon slot count temporarily expanded by X0-1V1 (+2) 4701 | -7/Storage | Met a pair of Derelict thieves 4739 | -7/Storage | Ambient heat levels rising (+10) 4878 | -7/Storage | Ambient heat levels falling (-10) 4904 | -7/Storage | Assisted by bots powering up and referring to "LRC-V3" 5021 | -7/Storage | Ambient heat levels falling (-10) 5167 | -7/Storage | Core integrity fell below 50% 5209 | -7/Storage | Used back door to open Recycling access 5209 | -7/Storage | Discovered new exit (range 5) 5214 | -7/Storage | Build established: Commander-Gunner 5232 | -7/Storage | System corruption reached 10% 5235 | -7/Storage | Entered Recycling 5235 | -7/Recycling | Accompanied by 7 allies 5300 | -7/Recycling | X0-1V1 rewrote Trooper 4i IFF filter 5449 | -7/Recycling | Entered Scraplab 5455 | -7/Recycling | Found Prototype Device 5455 | -7/Recycling | Identified Scrap Engine 5872 | -7/Recycling | Build established: Mutant 6052 | -7/Recycling | X0-1V1 activates XOMVISION 6219 | -7/Recycling | Discovered new exit (range 14) 6320 | -7/Recycling | Build established: Construct 6396 | -7/Recycling | X0-1V1 sent hostile H-55 Commando (x3) 6415 | -7/Recycling | Entered Factory 6415 | -5/Factory | Evolved 4 slots: Propulsion x1, Utility x2, Weapon x1 6491 | -5/Factory | X0-1V1 redirected Transport squads to designated parking area 6493 | -5/Factory | Identified exit to Upper Caves 6493 | -5/Factory | X0-1V1 revealed exit location to -5/Upper Caves 6601 | -5/Factory | Sensors blinded by X0-1V1 6715 | -5/Factory | Build established: Mutant 6818 | -5/Factory | Found Prototype Launcher 6818 | -5/Factory | Identified Tesla Bomb Launcher 6826 | -5/Factory | Found Tesla Bomb Launcher 6875 | -5/Factory | Found Prototype Launcher 6875 | -5/Factory | Identified Scatter Rocket Array 6919 | -5/Factory | X0-1V1 turns hostiles against one another 6941 | -5/Factory | Destroyed 25 combat bots 6949 | -5/Factory | X0-1V1 added 0b10 threat records associated with you (considerable) 6949 | -5/Factory | Lost 3 parts (1p1n1u) 6998 | -5/Factory | Found Scatter Rocket Array 7015 | -5/Factory | First assault squad dispatched 7060 | -5/Factory | X0-1V1 whisked you away to safety 7090 | -5/Factory | Entered Upper Caves 7423 | -5/Upper Caves | System corruption reached 10% 7473 | -5/Upper Caves | System corruption reached 30% 7511 | -5/Upper Caves | Learned Factory trap positions 7543 | -5/Upper Caves | Discovered new exit (range 5) 7551 | -5/Upper Caves | Entered another Upper Caves area 7564 | -5/Upper Caves | Discovered new exit (range 4) 7595 | -5/Upper Caves | X0-1V1 sent hostile Thug (x2) 7613 | -5/Upper Caves | Core integrity restored by X0-1V1 (+157) 7675 | -5/Upper Caves | Learned Factory interactive machine intel 7702 | -5/Upper Caves | Learned Factory emergency access door positions 7772 | -5/Upper Caves | Identified exit to Warlord 7772 | -5/Upper Caves | X0-1V1 revealed exit location to -5/Warlord 7829 | -5/Upper Caves | Entered Warlord 7859 | -5/Warlord | System corruption cleaned by Quarantine Array 7925 | -5/Warlord | Build established: Construct 7929 | -5/Warlord | Found Prototype Hackware 7932 | -5/Warlord | Found Prototype Device 7932 | -5/Warlord | Identified Exp. Focal Shield 7940 | -5/Warlord | Found Prototype Reactor 7946 | -5/Warlord | Found Prototype Processor 7952 | -5/Warlord | Found Prototype Processor 8262 | -5/Warlord | Visited the Vortex Lab 8264 | -5/Warlord | Found Prototype Energy Gun 8264 | -5/Warlord | Identified Vortex Shotgun 8269 | -5/Warlord | Found Vortex Shotgun 8280 | -5/Warlord | Warlord's base attacked by MAIN.C 8313 | -5/Warlord | Met Warlord 8328 | -5/Warlord | Build established: Commander-Construct 8376 | -5/Warlord | X0-1V1 activates XOMVISION 8486 | -5/Warlord | X0-1V1 downgraded hostiles (x4) 8507 | -5/Warlord | Warlord forces counterattacked 8558 | -5/Warlord | Destroyed 15 combat bots 8580 | -5/Warlord | Spotted B-75 Beast 8580 | -5/Warlord | Spotted B-86 Titan 8584 | -5/Warlord | Spotted Striker 8599 | -5/Warlord | Destroyed Striker 8610 | -5/Warlord | Destroyed B-75 Beast 8626 | -5/Warlord | Identified Exp. Target Analyzer 8635 | -5/Warlord | Lost 6 allies 8654 | -5/Warlord | X0-1V1 activates XOMVISION 8680 | -5/Warlord | Spotted Executioner 8680 | -5/Warlord | Spotted B-75 Beast 8680 | -5/Warlord | Spotted B-86 Titan 8723 | -5/Warlord | Destroyed B-86 Titan 8745 | -5/Warlord | Lost 11 allies 8780 | -5/Warlord | Spotted Executioner 8835 | -5/Warlord | X0-1V1 activates XOMVISION 8858 | -5/Warlord | Identified Exp. Targeting Computer 8880 | -5/Warlord | Spotted Striker 8914 | -5/Warlord | Core integrity restored by X0-1V1 (+187) 8955 | -5/Warlord | Warlord base infiltrated, sounded retreat 9006 | -5/Warlord | Spotted Executioner 9014 | -5/Warlord | Destroyed Executioner 9040 | -5/Warlord | Found Prototype Processor 9040 | -5/Warlord | Identified Exp. Core Analyzer 9107 | -5/Warlord | Spotted Executioner 9114 | -5/Warlord | Destroyed Executioner 9120 | -5/Warlord | Spotted Striker 9126 | -5/Warlord | Allies destroyed Striker 9132 | -5/Warlord | Found Prototype Device 9137 | -5/Warlord | Found Exp. Targeting Computer 9151 | -5/Warlord | Identified Adv. Kinecellerator 9163 | -5/Warlord | Lost 3 allies 9173 | -5/Warlord | Discovered new exit (range 16) 9186 | -5/Warlord | Spotted Striker 9199 | -5/Warlord | Destroyed Striker 9209 | -5/Warlord | X0-1V1 sent allied Elite (x2) 9243 | -5/Warlord | Lost 5 allies 9282 | -5/Warlord | Spotted Executioner 9287 | -5/Warlord | Spotted Executioner 9289 | -5/Warlord | Entered Proximity Caves 9289 | -4/Proximity Caves | Accompanied by 1 ally 9318 | -4/Proximity Caves | Lost 5 allies 9323 | -4/Proximity Caves | Learned location of Quarantine (-2) 9324 | -4/Proximity Caves | Learned 4 Research zone layouts 9380 | -4/Proximity Caves | X0-1V1 activates XOMVISION 9384 | -4/Proximity Caves | Identified exit to Factory 9384 | -4/Proximity Caves | X0-1V1 revealed exit location to -4/Factory 9387 | -4/Proximity Caves | X0-1V1 vaporized surrounding terrain (radius 15) 9390 | -4/Proximity Caves | Spotter reported a threat 9399 | -4/Proximity Caves | Entered Factory 9399 | -4/Factory | Evolved 2 slots: Power x1, Weapon x1 9400 | -4/Factory | Loaded intel: 95 trap records 9402 | -4/Factory | Loaded intel: 54 interactive machine locations 9424 | -4/Factory | X0-1V1 vaporized surrounding terrain (radius 15) 9425 | -4/Factory | Build established: Construct 9448 | -4/Factory | X0-1V1 sent you to a vault 9452 | -4/Factory | Found Prototype Protection 9452 | -4/Factory | Identified Hvy. Regenerative Plating 9455 | -4/Factory | Found Prototype Protection 9455 | -4/Factory | Identified Centrium Heavy Armor Plating 9463 | -4/Factory | Found Prototype Device 9463 | -4/Factory | Identified Adv. EM Shield 9526 | -4/Factory | Identified exit to Upper Caves 9561 | -4/Factory | X0-1V1 announced a LAN party 9569 | -4/Factory | Spotted B-86 Titan 9569 | -4/Factory | X0-1V1 sent you into danger 9577 | -4/Factory | Entered Upper Caves 9578 | -4/Upper Caves | Encountered a Warlord checkpoint 9602 | -4/Upper Caves | Learned Research terminal intel 9602 | -4/Upper Caves | X0-1V1 sent you into danger 9604 | -4/Upper Caves | Attracted the attention of an 0b10 outpost 9679 | -4/Upper Caves | Learned 4 Research zone layouts 9765 | -4/Upper Caves | X0-1V1 mutated your Weapon slot to Propulsion slot 9776 | -4/Upper Caves | Spotted B-86 Titan 9795 | -4/Upper Caves | Destroyed B-86 Titan 9826 | -4/Upper Caves | Identified exit to Upper Caves 9826 | -4/Upper Caves | X0-1V1 revealed exit location to -4/Upper Caves 9870 | -4/Upper Caves | Entered another Upper Caves area 9987 | -4/Upper Caves | Discovered new exit (range 3) 10275 | -4/Upper Caves | X0-1V1 activates XOMVISION 10373 | -4/Upper Caves | X0-1V1 mutated your Propulsion slot to Utility slot 10378 | -4/Upper Caves | Entered an active Warlord outpost 10414 | -4/Upper Caves | Learned Extension emergency access door positions 10414 | -4/Upper Caves | Learned Armory terminal intel 10414 | -4/Upper Caves | Learned Factory garrison access intel 10414 | -4/Upper Caves | Learned Research garrison access intel 10563 | -4/Upper Caves | System corruption reached 10% 10627 | -4/Upper Caves | X0-1V1 sent hostile B-60 Warrior (x3) 10669 | -4/Upper Caves | Learned location of Testing (-3) 10716 | -4/Upper Caves | System corruption reached 30% 10853 | -4/Upper Caves | Discovered new exit (range 8) 10866 | -4/Upper Caves | Entered Zhirov 10866 | -4/Zhirov | Discovered new exit (range 3) 10895 | -4/Zhirov | Met Zhirov 10929 | -4/Zhirov | Learned location of Command (-1) 10938 | -4/Zhirov | Zhirov requested help retrieving the SGEMP Prototype 10964 | -4/Zhirov | Found Alien Artifact 10964 | -4/Zhirov | Identified Integrated Reactor 10964 | -4/Zhirov | Installed Integrated Reactor, increased core energy generation (+10) 11055 | -4/Zhirov | Found Alien Artifact 11114 | -4/Zhirov | Entered Proximity Caves 11243 | -3/Proximity Caves | Spotted B-86 Titan 11290 | -3/Proximity Caves | X0-1V1 upgraded hostiles (x1) 11290 | -3/Proximity Caves | Spotted B-90 Cyclops 11308 | -3/Proximity Caves | X0-1V1 whisked you away to safety 11312 | -3/Proximity Caves | Discovered new exit (range 13) 11370 | -3/Proximity Caves | Entered Research 11370 | -3/Research | Evolved 2 slots: Utility x2 11371 | -3/Research | Identified exit to Armory 11372 | -3/Research | Identified exit to Testing 11374 | -3/Research | Loaded intel: 118 machine locations 11375 | -3/Research | Loaded intel: 21 terminal locations 11376 | -3/Research | Loaded intel: 4 garrison access locations 11548 | -3/Research | X0-1V1 enhanced Transport squad support 11769 | -3/Research | Entered Armory 11770 | -3/Armory | Loaded intel: 13 terminal locations 11946 | -3/Armory | Found Prototype Device 11946 | -3/Armory | Identified Exp. Thermal Defense Suite 12033 | -3/Armory | Found Prototype Processor 12033 | -3/Armory | Identified Exp. Signal Interpreter 12199 | -3/Armory | X0-1V1 added 0b10 threat records associated with you (major) 12206 | -3/Armory | Destroyed 9 combat bots 12269 | -3/Armory | First assault squad dispatched 12386 | -3/Armory | X0-1V1 activates XOMVISION 12395 | -3/Armory | X0-1V1 sent you to a vault 12396 | -3/Armory | Found Prototype Launcher 12396 | -3/Armory | Identified Ragnarok Missile Launcher 12402 | -3/Armory | Found Prototype Processor 12402 | -3/Armory | Identified Exp. Armor Integrity Analyzer 12405 | -3/Armory | Found Chaos Jack 12450 | -3/Armory | Spotted Armor Guard 12460 | -3/Armory | Identified Transdimensional Reconstructor 12460 | -3/Armory | Warped through subspace to slip node 12460 | -3/Armory | Discovered new exit (range 1) 12465 | -3/Armory | Discovered new exit (range 18) 12661 | -3/Armory | Entered Lab 12661 | -3/Lab | Discovered new exit (range 9) 12669 | -3/Lab | Unable to decrypt terminal 12669 | -3/Lab | Detected for breach 12675 | -3/Lab | Confronted by A5 12679 | -3/Lab | Destroyed A5 12684 | -3/Lab | Found Prototype Hackware 12690 | -3/Lab | Gained access to the hidden lab's interior 12702 | -3/Lab | Found Integrated Reactor 12702 | -3/Lab | Installed Integrated Reactor, increased core energy generation (+10) 12711 | -3/Lab | Found Alien Artifact 12711 | -3/Lab | Identified Core Expander 12711 | -3/Lab | Installed Core Expander, added new Weapon slot 12723 | -3/Lab | Found Prototype Hackware 12727 | -3/Lab | Found Prototype Energy Gun 12727 | -3/Lab | Identified Hyp. EM Gauss Rifle 12730 | -3/Lab | Found Prototype Energy Cannon 12730 | -3/Lab | Identified Warp Cannon 12741 | -3/Lab | Found Hvy. Regenerative Plating 12763 | -3/Lab | Found Transdimensional Reconstructor 12792 | -3/Lab | Unable to decrypt terminal 12792 | -3/Lab | Found Alien Artifact 12792 | -3/Lab | Identified LC Capacitor 12821 | -3/Lab | Entered Research 12821 | -2/Research | Warlord forces began assault on 0b10 12821 | -2/Research | Evolved 2 slots: Propulsion x1, Utility x1 12925 | -2/Research | Identified Exp. System Shield 12927 | -2/Research | Identified Deep Network Scanner 12931 | -2/Research | Research machine network offline 12979 | -2/Research | Spotted B-90 Cyclops 12999 | -2/Research | Lost 4 allies 13004 | -2/Research | Destroyed B-90 Cyclops 13019 | -2/Research | Met up with Warlord 13024 | -2/Research | Found Quantum Capacitor 13060 | -2/Research | X0-1V1 activates XOMVISION 13061 | -2/Research | Spotted B-90 Cyclops 13134 | -2/Research | Identified exit to Access 13134 | -2/Research | X0-1V1 revealed exit location to -1/Access 13138 | -2/Research | Spotted Striker 13145 | -2/Research | Spotted Striker 13160 | -2/Research | X0-1V1 sent you into danger 13161 | -2/Research | Destroyed Striker 13195 | -2/Research | X0-1V1 revealed exit location to -1/Access 13203 | -2/Research | Spotted Tracker 13206 | -2/Research | Destroyed Tracker 13234 | -2/Research | Build established: Hacker-Construct 13246 | -2/Research | X0-1V1 announced a LAN party 13249 | -2/Research | Spotted Striker 13254 | -2/Research | Destroyed Striker 13256 | -2/Research | Destroyed Striker 13293 | -2/Research | Spotted Striker 13296 | -2/Research | Spotted Executioner 13305 | -2/Research | X0-1V1 enhanced Transport squad support 13313 | -2/Research | Destroyed 10 combat bots 13314 | -2/Research | Destroyed Striker 13377 | -2/Research | Borebot progress halted 13389 | -2/Research | Spotted B-90 Cyclops 13396 | -2/Research | Found Prototype Device 13396 | -2/Research | Identified Exp. Transmission Jammer 13399 | -2/Research | Spotted Tracker 13400 | -2/Research | Spotted Tracker 13400 | -2/Research | Spotted Tracker 13402 | -2/Research | Destroyed Tracker 13404 | -2/Research | Spotted Combat Programmer 13408 | -2/Research | Destroyed Tracker 13410 | -2/Research | Destroyed Tracker 13412 | -2/Research | Weapon slot count temporarily expanded by X0-1V1 (+1) 13441 | -2/Research | Found Prototype Device 13441 | -2/Research | Identified Exp. Phase Shifter 13450 | -2/Research | Destroyed B-90 Cyclops 13453 | -2/Research | Found Prototype Energy Gun 13453 | -2/Research | Identified Immobilizer 13481 | -2/Research | Found Exp. Phase Shifter 13483 | -2/Research | X0-1V1 sent you into danger 13485 | -2/Research | Destroyed Executioner 13523 | -2/Research | Found Exp. Targeting Computer 13528 | -2/Research | Found Exp. Core Analyzer 13540 | -2/Research | Found Faulty Exp. Armor Integrity Analyzer 13552 | -2/Research | Borebot progress halted 13566 | -2/Research | X0-1V1 added 0b10 threat records associated with you (considerable) 13574 | -2/Research | Discovered new exit (range 3) 13603 | -2/Research | Destroyed Combat Programmer 13682 | -2/Research | High security lockdown imminent 13685 | -2/Research | Met DD-05H 13732 | -2/Research | Build established: Construct 13762 | -2/Research | High security lockdown engaged 13763 | -2/Research | Entered Quarantine 13829 | -2/Quarantine | Found Ragnarok Missile Launcher 13855 | -2/Quarantine | Identified Ghost Barrier 13890 | -2/Quarantine | Cryocooling Duct disabled 13893 | -2/Quarantine | Found Prototype Device 13893 | -2/Quarantine | Identified Exp. Shock Absorption System 13901 | -2/Quarantine | Cryocooling Duct disabled 13904 | -2/Quarantine | X0-1V1 sent someone to keep an eye on you 13905 | -2/Quarantine | Ambient heat levels rising (+20) 13905 | -2/Quarantine | Non-combat units ordered to evacuate 13916 | -2/Quarantine | Ambient heat levels rising (+20) 13916 | -2/Quarantine | Combat units ordered to evacuate 13970 | -2/Quarantine | Cryocooling Duct disabled 13985 | -2/Quarantine | Ambient heat levels rising (+20) 14016 | -2/Quarantine | Quarantine Guard activated 14036 | -2/Quarantine | Spotted Quarantine Guard 14038 | -2/Quarantine | Destroyed Quarantine Guard 14038 | -2/Quarantine | Spotted Quarantine Guard 14043 | -2/Quarantine | Found Exp. Phase Shifter 14073 | -2/Quarantine | Spotted Quarantine Guard 14075 | -2/Quarantine | Destroyed Quarantine Guard 14075 | -2/Quarantine | Spotted Quarantine Guard 14080 | -2/Quarantine | Spotted Quarantine Guard 14086 | -2/Quarantine | Spotted Quarantine Guard 14086 | -2/Quarantine | Spotted Quarantine Guard 14088 | -2/Quarantine | Spotted Quarantine Guard 14088 | -2/Quarantine | Spotted Quarantine Guard 14088 | -2/Quarantine | Spotted Quarantine Guard 14092 | -2/Quarantine | Spotted Quarantine Guard 14103 | -2/Quarantine | Discovered exit to Access (range 8) 14112 | -2/Quarantine | X0-1V1 sent hostile P-80 Master (x3) 14147 | -2/Quarantine | Destroyed Quarantine Guard 14152 | -2/Quarantine | Destroyed Quarantine Guard 14160 | -2/Quarantine | Destroyed Quarantine Guard 14169 | -2/Quarantine | Destroyed Quarantine Guard 14185 | -2/Quarantine | X0-1V1 sent allied Executioner (x2) 14185 | -2/Quarantine | Allies destroyed Quarantine Guard 14189 | -2/Quarantine | Destroyed Quarantine Guard 14195 | -2/Quarantine | Destroyed Quarantine Guard 14208 | -2/Quarantine | High security lockdown imminent 14235 | -2/Quarantine | Destroyed 9 combat bots 14285 | -2/Quarantine | Cryocooling Duct disabled 14288 | -2/Quarantine | High security lockdown engaged 14300 | -2/Quarantine | Ambient heat levels rising (+20) 14308 | -2/Quarantine | Found Transdimensional Reconstructor 14365 | -2/Quarantine | Found Alien Artifact 14409 | -2/Quarantine | Spotted Investigator 14414 | -2/Quarantine | Spotted Executioner 14425 | -2/Quarantine | X0-1V1 sent allied B-74 Champion (x5) 14431 | -2/Quarantine | Allies destroyed Investigator 14445 | -2/Quarantine | Destroyed Executioner 14527 | -2/Quarantine | Lost 4 allies 14570 | -2/Quarantine | Spotted Quarantine Guard 14600 | -2/Quarantine | Spotted Executioner 14609 | -2/Quarantine | Destroyed Executioner 14610 | -2/Quarantine | Spotted Striker 14620 | -2/Quarantine | X0-1V1 sent allied Striker (x2) 14620 | -2/Quarantine | Allies destroyed Striker 14640 | -2/Quarantine | Destroyed Quarantine Guard 14737 | -2/Quarantine | Destroyed Quarantine Guard 14828 | -2/Quarantine | X0-1V1 downgraded hostiles (x2) 15139 | -2/Quarantine | X0-1V1 sent hostile G-67 Veteran (x4) 15177 | -2/Quarantine | Found Prototype Launcher 15177 | -2/Quarantine | Identified Containment Facilitator 15343 | -2/Quarantine | X0-1V1 mutated your Utility slot to Propulsion slot 15398 | -2/Quarantine | X0-1V1 sent you to a vault 15449 | -2/Quarantine | Found Exp. Targeting Computer 15469 | -2/Quarantine | Found Alien Artifact 15473 | -2/Quarantine | Found Alien Artifact 15476 | -2/Quarantine | Found Alien Artifact 15562 | -2/Quarantine | Spotted Fortress 15612 | -2/Quarantine | Discovered new exit (range 7) 15612 | -2/Quarantine | Discovered new exit (range 6) 15616 | -2/Quarantine | Entered Protoforge 15630 | -2/Protoforge | X0-1V1 activates XOMVISION 15683 | -2/Protoforge | X0-1V1 mutated your Utility slot to Propulsion slot 15685 | -2/Protoforge | Discovered exit to Access (range 14) 15696 | -2/Protoforge | Identified Dimensional Node Initializer 15696 | -2/Protoforge | Initialized slip node 15712 | -2/Protoforge | X0-1V1 announced a LAN party 15844 | -2/Protoforge | Superfortress began startup sequence 15863 | -2/Protoforge | High security lockdown imminent 15863 | -2/Protoforge | Destroyed Superfortress 15874 | -2/Protoforge | Found Prototype Ballistic Cannon 15874 | -2/Protoforge | Identified Cep. Helical Railcannon 15875 | -2/Protoforge | Core integrity restored by X0-1V1 (+312) 15877 | -2/Protoforge | Found Prototype Energy Cannon 15877 | -2/Protoforge | Identified Cld. Nova Cannon 15883 | -2/Protoforge | Found Prototype Device 15883 | -2/Protoforge | Identified Thermal Barrier 15886 | -2/Protoforge | Found Prototype Device 15886 | -2/Protoforge | Identified Exp. Force Field 15890 | -2/Protoforge | X0-1V1 activates XOMVISION 15891 | -2/Protoforge | Found Prototype Device 15891 | -2/Protoforge | Identified Cep. Matter Streamer 15893 | -2/Protoforge | Found Prototype Device 15893 | -2/Protoforge | Identified Cep. Antimissile System 15900 | -2/Protoforge | Found Prototype Energy Cannon 15900 | -2/Protoforge | Identified Null Cannon 15909 | -2/Protoforge | Found Prototype Storage 15909 | -2/Protoforge | Identified Cep. NT7 Matterbank 15943 | -2/Protoforge | High security lockdown engaged 15943 | -2/Protoforge | Scanned by Researcher 15963 | -2/Protoforge | Intercept squad dispatched 15971 | -2/Protoforge | Spotted Tracker 15971 | -2/Protoforge | Spotted Tracker 15975 | -2/Protoforge | Destroyed Tracker 15976 | -2/Protoforge | Destroyed Tracker 15981 | -2/Protoforge | Spotted Combat Programmer 15990 | -2/Protoforge | Spotted Combat Programmer 15991 | -2/Protoforge | Found Exp. Targeting Computer 15994 | -2/Protoforge | Identified Hpw. Transdimensional Reconstructor (x2) 15994 | -2/Protoforge | Warped through subspace to slip node 15997 | -2/Protoforge | Found Exp. Phase Shifter 16028 | -2/Protoforge | Entered Access 16028 | -1/Access | Evolved 1 slot: Utility x1 16193 | -1/Access | Garrison activated, responded to threat 16196 | -1/Access | Spotted Striker 16198 | -1/Access | Spotted Striker 16215 | -1/Access | Destroyed Striker 16236 | -1/Access | Destroyed 18 combat bots 16325 | -1/Access | High security lockdown imminent 16351 | -1/Access | Destroyed 9 combat bots 16366 | -1/Access | System corruption reached 10% 16405 | -1/Access | High security lockdown engaged 16636 | -1/Access | X0-1V1 sent allied C-57 Dissector (x3) 16667 | -1/Access | Intercept squad dispatched 16669 | -1/Access | Lost 3 allies 16683 | -1/Access | Spotted Tracker 16684 | -1/Access | Spotted Tracker 16685 | -1/Access | Destroyed Tracker 16709 | -1/Access | Destroyed Tracker 16719 | -1/Access | Spotted Combat Programmer 16728 | -1/Access | Destroyed Combat Programmer 16739 | -1/Access | Spotted Investigator 16747 | -1/Access | Spotted Combat Programmer 16757 | -1/Access | Warped through subspace 16767 | -1/Access | X0-1V1 sent allied Fireman (x2) 16788 | -1/Access | Discovered new exit (range 6) 16949 | -1/Access | Spotted Striker 16951 | -1/Access | Spotted Striker 16961 | -1/Access | Spotted Striker 16964 | *** | Escaped! Last Messages --------------- 16948_ System corrupted: Matter fused (-5). 16949_ C-45 Heavy ARC bursts open, deploying its payload. 16949_ Striker unfolds itself. 16949_ I-47 Archangel unfolds itself. 16952_ VU-TMU(i) destroyed. 16955_ 4D-7S1(i) destroyed. 16957_ Destroyed Gamma Rifle. 16957_ P-80 Master destroyed. 16958_ C-45 Heavy ARC bursts open, deploying its payload. 16958_ H-88 Terminator unfolds itself. 16958_ Striker unfolds itself. 16958_ P-80 Master unfolds itself. 16958_ M-36 Artificer unfolds itself. 16960_ Slug penetrates Terminal. 16960_ R-10 Processor collects Imp. Terrain Scanner. 16961_ Knocked back. [Achievement: Chaotic Teddy Bear] Map ----- +----------------------------------------------------+ | ?????????????????????????????????????????????????? | | ?????????????????????????????????????????????????? | | ?????????????????????????????????????????????????? | | ?????????????????????????????????????????????????? | | ?????????????????????????????????????????????????? | | ?????????????????????????????????????????????????? | | ?????????????????????????????????????????????????? | | ?????????????????????????????????????????????????? | | ?????????????????????????????????????????????????? | | ?????????????????????????????????????????????????? | | ?????????????????????????????????????????????????? | | ??????????????????????????????????????? ?????????? | | ?????????????????????????????????????? #????????? | | ?????????????????????????????????????? #????????? | | ?????????????????????????????????????? #????????? | | ?????????????????????????????????????? #????????? | | ?????????????????????????????????????? #????????? | | ?????????????????????????????????????? #????????? | | ?????????????????????????????????????# #????????? | | ?????????????????????????????????????# #????????? | | ??????????????????????????####"####### #????????? | | ?????????????????????????? " #????????? | | ??????????????????????????? " ##???????? | | ??????????????????????"""""" " ###??????? | | ??????????????????????" " "% # #??????? | | ??????????????????????" "@ " ! # #??????? | | ??????????????????????" "" %" %!%! # #??????? | | ??????????????????????" KK% ! % # #??????? | | ??????????????????????""""" %" p % # #??????? | | ???????????????????????? """"%K h ###??????? | | ????????????????????? ! """"T"""% ##???????? | | ????????????????????##########"#######""#????????? | | ?????????????????????????????????????# %#????????? | | ?????????????????????????????????????# ########## | | ?????????????????????????????????????# # """ | | ?????????????????????????????????????# # ""F"" | | ?????????????????????????????????????# " "" "" | | ?????????????????????????????????????# # | | ???????????????????????????????????? #! | | ?????????????????????????????????? # = | | ???????????????????????????????? # ! | | ??????????????????????????????# # | | ??????????????????????????????# ########## | | ??????????????????????????????# #????????? | | ??????????????????????????????# #????????? | | ??????????????????????????????# ?????????? | | ??????????????????????????????# ?????????? | | ??????????????????????????????# ?????????? | | ??????????????????????????????# ?????????? | | ??????????????????????????????? ?????????? | +----------------------------------------------------+ Best States ------------- Heat Dissipation 169 Coolant Potential 130 Energy Generation 154 Energy Capacity 3065 Matter Stores 900 Matter Capacity 1550 Sight Range 24 Terrain Scan Range 14 Terrain Scan Density 10 Jamming Range 22 Armor Coverage 1200 Resistance: KI 30 Weapon Shielding 66 Point Defense Rating 480 Weapon Cycling 30 Phase Shifting 20 Evasion (%) 93 Targeting Accuracy 12 Armor Integrity Analysis 50 Recoil Reduction 6 Kinecelleration 50 Offensive Hacking 25 Defensive Hacking 16 Item Schematics ----------------- Assault Drone Bay | -4/Zhirov | Free Exp. Heat Sink | -4/Zhirov | Free Exp. Optical Array | -4/Zhirov | Free Imp. Arc Thrower | -4/Zhirov | Free Adv. Myomer Leg | -2/Quarantine | Archive Thermal Defense Suite | -2/Quarantine | Archive Hds. Centrium Wheel | -2/Quarantine | Archive Cld. Linear Gravjet | -2/Quarantine | Archive Com. Mass Driver | -2/Quarantine | Archive Hvy. Antimatter Reactor | -2/Quarantine | Archive Imp. Q-thruster | -2/Quarantine | Archive Helical Railgun | -2/Quarantine | Archive Imp. Diametric Drive | -2/Quarantine | Archive Adv. Quantum Shading Machine | -2/Quarantine | Archive Robot Schematics ------------------ A-15 Conveyor | -2/Quarantine | Archive G-73 Enforcer | -2/Quarantine | Archive X-87 Electro | -2/Quarantine | Archive R-06 Scavenger | -2/Quarantine | Archive Fabricated ------------ Nothing Repaired ---------- Nothing Studied --------- None Alien Tech Used ----------------- Integrated Reactor Transdimensional Reconstructor Core Expander LC Capacitor Dimensional Node Initializer High-powered Transdimensional Reconstructor Achievements -------------- Chaotic Teddy Bear Dominance Asserted Challenges ------------ None Game ------ Seed FieldthrustOpticalCharger Manual? 0 Play Time 04:34:34 Cumulative 770.4 hours Start 2026.06.23 @ 16:39:32 End 2026.06.23 @ 22:09:03 Sessions 3 Manual Loads 0 Difficulty Rogue Special Mode None Game No. 431 Rogue 431 Adventurer 0 Explorer 0 Win Type 0 Total 38 Types 18/3/6/2/1/2/2/2/1/1 Lore% 94 Gallery% 89 Achievement% 82 Wizard Run 0 Options --------- Layout 1 ASCII 0 Keyboard 0 Movement Numpad Keybinds 0 Fullscreen 2 Font 24/Smallcaps Map View 50x40 Zoom Use 0% Tactical HUD 1 Map Filters NONE Filters NONE Steam 1 RUN: 945285f1-42b7-4c93-a3cf-1731af729c06